bitfinex/quotes_SOLUSD_20250403
["timestamp","ask_amount","ask_price","bid_price","bid_amount"]
[1743651083808,26.52326868,120.68,120.63,0.063]
[1743651084120,18.74678397,120.67,120.63,0.063]
[1743651084626,8.2877,120.66,120.63,0.063]
[1743651087022,8.287,120.67,120.63,0.063]
[1743651087407,7.35,120.68,120.63,0.063]
[1743651087826,0.03,120.68,120.63,0.063]
[1743651088736,0.03,120.68,120.64,26.0]
[1743651089312,0.03,120.68,120.65,8.2884]
[1743651090223,0.03,120.68,120.65,29.0094]
[1743651090809,0.03,120.68,120.65,8.2884]
[1743651091443,0.03,120.68,120.64,8.289]
[1743651091810,0.03,120.68,120.63,8.3526]
[1743651092639,0.03,120.68,120.63,0.063]
[1743651097214,0.03,120.68,120.63,18.71264886]
[1743651097416,0.03,120.68,120.65,26.0]
[1743651098040,0.03,120.68,120.66,8.2877]
[1743651098516,0.03,120.68,120.67,18.64964886]
[1743651098718,0.03,120.71,120.67,18.64964886]
[1743651100019,0.03,120.71,120.68,29.0022]
[1743651101323,0.03,120.71,120.69,18.64964886]
[1743651101938,0.03,120.71,120.69,107.86964886]
[1743651103454,0.03,120.71,120.7,8.285]
[1743651109053,9.8768,120.77,120.7,48.07363357]
[1743651109054,1.5966,120.77,120.7,48.07363357]
[1743651109228,0.03,120.78,120.71,24.93764886]
[1743651110751,0.03,120.78,120.72,28.9926]
[1743651112338,0.03,120.78,120.72,8.2836]
[1743651112645,0.31432314,120.78,120.72,8.2836]
[1743651112849,0.14216157,120.77,120.71,8.2843]
[1743651113233,7.46216157,120.77,120.71,8.2843]
[1743651114461,1.5076,120.76,120.71,8.2843]
[1743651114756,0.42648471,120.75,120.69,8.2856]
[1743651114957,8.2822,120.74,120.68,8.2863]
[1743651115474,8.70828471,120.75,120.68,8.2863]
[1743651117061,27.45506868,120.75,120.67,29.0032]
[1743651117238,27.45506868,120.75,120.67,8.287]
[1743651118556,0.28432314,120.73,120.66,8.2877]
[1743651118855,0.14216157,120.72,120.66,8.2877]
[1743651119469,0.14216157,120.72,120.66,29.007]
[1743651120136,0.14216157,120.72,120.68,0.063]
[1743651122974,1.5033,120.71,120.68,0.063]
[1743651123666,0.42648471,120.7,120.68,0.063]
[1743651124351,0.14216157,120.7,120.68,0.063]
[1743651129348,1.5033,120.71,120.68,0.063]
[1743651131766,26.0,120.71,120.68,0.063]
[1743651132672,0.42648471,120.7,120.68,0.063]
[1743651132878,27.00006868,120.69,120.68,0.063]
[1743651133247,35.28566868,120.69,120.68,0.063]
[1743651133772,53.93531754,120.69,120.68,0.063]
[1743651136861,47.71991754,120.69,120.68,0.063]
[1743651137061,47.4355944,120.69,120.68,0.063]
[1743651137572,47.71991754,120.69,120.68,0.063]
[1743651137874,55.03991754,120.69,120.68,0.063]
[1743651138871,9.07356157,120.69,120.68,0.063]
[1743651139053,9.35788471,120.69,120.68,0.063]
[1743651139255,36.39026868,120.69,120.68,0.063]
[1743651140166,0.14216157,120.65,120.63,0.063]
[1743651140481,19.17326868,120.65,120.63,0.063]
[1743651140681,27.46196868,120.65,120.63,0.063]
[1743651140977,8.71518471,120.65,120.63,0.063]
[1743651142863,16.03518471,120.65,120.63,0.063]
[1743651144391,19.03110711,120.64,120.63,0.063]
[1743651145192,129.86741754,120.64,120.63,0.063]
[1743651148279,154.76741754,120.64,120.63,0.063]
[1743651149590,110.93344554,120.64,120.63,0.063]
[1743651149798,109.27804554,120.64,120.63,0.063]
[1743651149996,0.14216157,120.64,120.63,0.063]
[1743651151095,349.24678397,120.66,120.63,0.063]
[1743651151280,0.14216157,120.65,120.63,0.063]
[1743651151467,0.42648471,120.65,120.63,0.063]
[1743651151767,0.28432314,120.64,120.63,0.063]
[1743651151967,37.82291754,120.64,120.63,0.063]
[1743651152580,119.92291754,120.64,120.63,0.063]
[1743651153578,128.21201754,120.64,120.63,0.063]
[1743651155193,82.52648471,120.64,120.63,0.063]
[1743651155374,90.53126157,120.64,120.63,0.063]
[1743651155578,109.27804554,120.64,120.63,0.063]
[1743651155992,109.56236868,120.64,120.63,0.063]
[1743651156599,128.21201754,120.64,120.63,0.063]
[1743651158001,82.52648471,120.64,120.63,0.063]
[1743651158380,90.67342314,120.64,120.63,0.063]
[1743651158587,82.52648471,120.64,120.63,0.063]
[1743651159394,82.24216157,120.64,120.63,0.063]
[1743651160895,0.14216157,120.64,120.63,0.063]
[1743651164082,8.43126157,120.64,120.63,0.063]
[1743651164278,46.11201754,120.64,120.63,0.063]
[1743651168010,27.36523357,120.64,120.63,0.063]
[1743651168202,46.11201754,120.64,120.63,0.063]
[1743651171787,39.37825914,120.64,120.63,0.063]
[1743651177209,46.69825914,120.64,120.63,0.063]
[1743651177993,27.76428714,120.64,120.63,0.063]
[1743651178186,28.04861028,120.64,120.63,0.063]
[1743651179403,16.03558471,120.64,120.63,0.063]
[1743651179610,28.04861028,120.64,120.63,0.063]
[1743651180420,71.59825914,120.64,120.63,0.063]
[1743651180911,0.42648471,120.6,120.58,0.063]
[1743651181211,12.43951028,120.6,120.58,0.063]
[1743651182412,8.57682314,120.59,120.58,0.063]
[1743651183697,82.38432314,120.62,120.58,0.063]
[1743651183902,82.1,120.62,120.58,0.063]
[1743651184101,0.42648471,120.61,120.58,0.063]
[1743651184318,12.43951028,120.61,120.58,0.063]
[1743651184619,0.14216157,120.59,120.58,0.063]
[1743651187235,8.71898471,120.59,120.58,0.063]
[1743651187424,20.73201028,120.59,120.58,0.063]
[1743651190441,39.38165914,120.59,120.58,0.063]
[1743651191145,64.28165914,120.59,120.58,0.063]
[1743651191330,38.43951028,120.56,120.55,0.063]
[1743651192141,26.42648471,120.56,120.55,0.063]
[1743651192338,0.14216157,120.57,120.55,0.063]
[1743651192546,15.612,120.6,120.55,0.063]
[1743651192738,7.32,120.6,120.56,14.7013]
[1743651193043,0.14216157,120.62,120.56,14.7013]
[1743651193251,0.14216157,120.62,120.57,1.6336]
[1743651193444,0.03,120.63,120.57,1.6336]
[1743651193613,0.17216157,120.63,120.57,1.6336]
[1743651194465,20.47498714,120.63,120.57,1.6336]
[1743651194860,20.47498714,120.63,120.58,8.2932]
[1743651195792,0.28432314,120.62,120.57,1.6336]
[1743651195981,0.14216157,120.61,120.57,1.6336]
[1743651196356,0.17216157,120.63,120.57,9.9272]
[1743651197170,0.03,120.63,120.57,30.662]
[1743651197461,0.03,120.63,120.58,6.3016]
[1743651197972,0.42648471,120.62,120.58,6.3016]
[1743651198877,0.03,120.63,120.59,8.2925]
[1743651203946,20.75961028,120.63,120.58,6.3646]
[1743651204355,8.74658471,120.63,120.58,6.3646]
[1743651205140,0.45648471,120.63,120.58,14.6577]
[1743651205336,8.74638471,120.63,120.58,14.6577]
[1743651205543,20.75941028,120.63,120.58,6.3646]
[1743651205764,8.74638471,120.63,120.58,14.6578]
[1743651205956,0.17216157,120.63,120.58,14.6578]
[1743651207281,20.47508714,120.63,120.58,6.3646]
[1743651207642,20.47508714,120.63,120.58,14.6577]
[1743651210063,0.28432314,120.62,120.58,14.6577]
[1743651210463,0.14216157,120.61,120.58,14.6577]
[1743651215863,8.43336157,120.61,120.58,0.063]
[1743651216573,8.43336157,120.61,120.58,20.063]
[1743651218574,0.14216157,120.61,120.58,20.063]
[1743651218775,0.03,120.63,120.58,28.356]
[1743651218989,0.45648471,120.63,120.58,28.356]
[1743651219285,8.74628471,120.63,120.58,28.356]
[1743651219575,20.75931028,120.63,120.58,28.356]
[1743651219763,20.75931028,120.63,120.58,20.063]
[1743651220784,0.14216157,120.61,120.58,20.063]
[1743651223173,27.36733357,120.61,120.58,20.063]
[1743651223372,39.38035914,120.61,120.58,20.063]
[1743651226073,27.36733357,120.61,120.58,20.063]
[1743651226585,39.38035914,120.61,120.58,20.063]
[1743651228469,39.41035914,120.61,120.58,20.063]
[1743651229590,27.39733357,120.61,120.58,20.063]
[1743651230591,39.41035914,120.61,120.58,20.063]
[1743651230888,27.39733357,120.61,120.58,20.063]
[1743651231596,0.45648471,120.61,120.58,28.3559]
[1743651231802,0.03,120.61,120.58,28.3559]
[1743651234386,0.45648471,120.61,120.58,20.063]
[1743651236403,20.76081028,120.61,120.58,20.063]
[1743651236606,12.43951028,120.59,120.58,20.063]
[1743651237991,20.73201028,120.59,120.58,20.063]
[1743651240003,8.71898471,120.59,120.58,20.063]
[1743651240501,20.73201028,120.59,120.58,20.063]
[1743651240794,39.38165914,120.59,120.58,20.063]
[1743651241190,27.36863357,120.59,120.58,20.063]
[1743651241397,39.38165914,120.59,120.58,20.063]
[1743651245802,121.48165914,120.59,120.58,20.063]
[1743651247106,109.46863357,120.59,120.58,20.063]
[1743651247417,82.24216157,120.59,120.58,20.063]
[1743651247589,82.52648471,120.59,120.58,20.063]
[1743651247798,90.81898471,120.59,120.58,20.063]
[1743651248187,121.48165914,120.59,120.58,20.063]
[1743651248595,64.28165914,120.59,120.58,20.063]
[1743651252906,64.31165914,120.59,120.58,20.063]
[1743651254794,70.94598726,120.59,120.58,20.063]
[1743651256200,70.94598726,120.59,120.58,14.60160645]
[1743651257011,133.14018726,120.59,120.55,0.063]
[1743651257217,38.43951028,120.56,120.55,0.063]
[1743651257405,45.75951028,120.56,120.55,0.063]
[1743651257718,54.05411028,120.56,120.55,0.063]
[1743651258219,78.95411028,120.56,120.55,0.063]
[1743651262617,97.60375914,120.56,120.55,0.063]
[1743651263322,99.14435914,120.56,120.55,0.063]
[1743651263521,0.14216157,120.51,120.5,0.063]
[1743651263704,31.08915914,120.51,120.5,0.063]
[1743651264307,39.38715914,120.51,120.5,0.063]
[1743651266724,146.38715914,120.51,120.5,0.063]
[1743651268212,121.48715914,120.51,120.5,0.063]
[1743651268534,39.38715914,120.51,120.5,0.063]
[1743651268718,39.38715914,120.51,120.46,0.063]
[1743651268719,0.28432314,120.48,120.46,0.063]
[1743651268922,94.53951028,120.47,120.46,0.063]
[1743651269220,113.18915914,120.47,120.46,0.063]
[1743651270741,121.48995914,120.47,120.46,0.063]
[1743651271318,39.38995914,120.47,120.46,0.063]
[1743651278448,40.98885914,120.47,120.46,0.063]
[1743651278823,19.07613357,120.46,120.45,0.063]
[1743651279026,31.08915914,120.46,120.45,0.063]
[1743651279225,113.18915914,120.46,120.45,0.063]
[1743651279744,121.49065914,120.46,120.45,0.063]
[1743651280856,128.04423313,120.46,120.45,0.063]
[1743651282437,128.04423313,120.46,120.42,0.063]
[1743651282643,57.08915914,120.43,120.42,0.063]
[1743651284651,65.39265914,120.43,120.42,0.063]
[1743651288954,57.08915914,120.43,120.42,0.063]
[1743651289125,65.39265914,120.43,120.42,0.063]
[1743651310459,111.05155914,120.43,120.4,0.063]
[1743651310764,12.43951028,120.41,120.4,0.063]
[1743651312450,31.08915914,120.41,120.4,0.063]
[1743651312650,39.39405914,120.41,120.4,0.063]
[1743651315541,27.38103357,120.41,120.4,0.063]
[1743651315742,39.39405914,120.41,120.4,0.063]
[1743651322064,121.49405914,120.41,120.4,0.063]
[1743651322945,82.24216157,120.41,120.4,0.063]
[1743651323152,8.3028,120.44,120.4,6.7168]
[1743651323368,0.14216157,120.43,120.4,6.7168]
[1743651323650,0.42648471,120.43,120.4,6.7168]
[1743651323846,0.03,120.42,120.41,1.525]
[1743651324059,26.03,120.42,120.41,1.525]
[1743651326570,0.14216157,120.41,120.4,6.7168]
[1743651327480,26.03,120.42,120.4,6.7168]
[1743651327682,26.03,120.42,120.4,15.0221]
[1743651330861,0.03,120.42,120.4,15.0221]
[1743651332285,0.03,120.42,120.41,20.26524886]
[1743651332460,0.03,120.45,120.41,20.26524886]
[1743651332461,0.03,120.45,120.41,26.55454886]
[1743651333212,0.03,120.45,120.42,29.0648]
[1743651335466,0.03,120.45,120.43,25.06634886]
[1743651335668,0.03,120.45,120.44,1.6127]
[1743651336580,0.03,120.45,120.44,20.26234886]
[1743651336772,0.03,120.48,120.46,6.4167]
[1743651336970,0.03,120.48,120.47,8.3008]
[1743651343193,0.03,120.48,120.46,14.7179]
[1743651348598,0.03,120.48,120.46,6.4167]
[1743651348783,0.03,120.48,120.46,14.718]
[1743651368615,0.03,120.48,120.46,22.038]
[1743651375494,0.03,120.48,120.46,8.3013]
[1743651378394,0.03,120.48,120.46,22.1902]
[1743651378604,1.6275,120.55,120.47,18.64964886]
[1743651378824,1.6275,120.55,120.47,100.54964886]
[1743651379701,1.6275,120.55,120.48,29.0504]
[1743651386731,0.03,120.55,120.49,20.27084886]
[1743651387530,0.03,120.55,120.48,29.0504]
[1743651389229,20.33882557,120.55,120.48,29.0504]
[1743651389410,0.14216157,120.54,120.48,29.0504]
[1743651389618,12.43951028,120.54,120.48,8.3001]
[1743651390422,0.42648471,120.54,120.48,8.3001]
[1743651391328,26.0,120.53,120.48,29.0504]
[1743651391629,26.0,120.53,120.49,18.64964886]
[1743651392332,22.71718177,120.53,120.49,18.64964886]
[1743651392528,1.6208,120.55,120.49,18.64964886]
[1743651393139,1.6208,120.55,120.5,8.2987]
[1743651394237,9.9163,120.55,120.5,8.2987]
[1743651394931,1.6208,120.55,120.5,8.2987]
[1743651395337,1.6208,120.55,120.49,8.2994]
[1743651395516,9.9162,120.55,120.49,8.2994]
[1743651396112,1.6208,120.55,120.49,8.2994]
[1743651396417,9.9161,120.55,120.49,8.2994]
[1743651398441,1.6208,120.55,120.49,8.2994]
[1743651398935,0.03,120.55,120.5,7.3]
[1743651399234,0.03,120.55,120.54,26.0]
[1743651399420,0.03,120.55,120.51,7.6966]
[1743651399740,46.48048714,120.55,120.49,15.5994]
[1743651399927,34.46746157,120.55,120.49,15.5994]
[1743651400636,0.14216157,120.53,120.48,8.3]
[1743651401552,0.14216157,120.53,120.47,26.61463806]
[1743651401553,20.45228714,120.53,120.47,26.61463806]
[1743651401834,13.61842557,120.52,120.45,98.5154]
[1743651402018,1.6054,120.52,120.46,18.64964886]
[1743651402439,8.2971,120.53,120.46,18.64964886]
[1743651402742,0.14216157,120.54,120.46,18.64964886]
[1743651402936,8.43816157,120.54,120.47,7.3]
[1743651403621,8.43816157,120.54,120.48,8.3001]
[1743651404441,20.45118714,120.54,120.48,8.3001]
[1743651405541,8.43816157,120.54,120.48,8.3001]
[1743651408625,53.15082557,120.55,120.48,8.3001]
[1743651408844,55.26942557,120.55,120.48,8.3001]
[1743651409320,47.96942557,120.55,120.48,8.3001]
[1743651411943,35.9564,120.55,120.48,8.3001]
[1743651412118,27.6608,120.55,120.48,8.3001]
[1743651412319,27.6608,120.55,120.48,29.0504]
[1743651416047,27.6608,120.55,120.5,8.2987]
[1743651416225,0.03,120.55,120.5,30.6236]
[1743651416430,0.03,120.55,120.51,18.64964886]
[1743651417326,0.03,120.55,120.51,100.54964886]
[1743651417742,0.03,120.55,120.51,107.84964886]
[1743651418554,0.03,120.55,120.52,8.2973]
[1743651421129,0.03,120.55,120.52,29.0407]
[1743651422844,0.03,120.55,120.52,8.2973]
[1743651429254,0.03,120.55,120.52,8.3603]
[1743651429431,12.18518714,120.55,120.52,0.063]
[1743651429632,8.2966,120.53,120.52,0.063]
[1743651430343,8.296,120.54,120.52,0.063]
[1743651431150,20.30902557,120.54,120.52,0.063]
[1743651431554,12.15518714,120.53,120.52,0.063]
[1743651431754,20.45178714,120.53,120.52,0.063]
[1743651431936,46.45178714,120.53,120.52,0.063]
[1743651432436,34.43876157,120.53,120.52,0.063]
[1743651434748,46.45178714,120.53,120.52,0.063]
[1743651436755,34.43876157,120.53,120.52,0.063]
[1743651436962,46.45178714,120.53,120.52,0.063]
[1743651439857,46.30962557,120.53,120.52,0.063]
[1743651440066,34.2966,120.53,120.52,0.063]
[1743651440766,26.0,120.53,120.52,0.063]
[1743651440963,0.03,120.55,120.52,0.063]
[1743651441452,0.03,120.53,120.52,0.063]
[1743651454775,26.03,120.53,120.52,0.063]
[1743651456070,26.17216157,120.53,120.52,0.063]
[1743651456668,0.03,120.53,120.52,0.063]
[1743651466990,0.03,120.53,120.52,18.71264886]
[1743651467290,0.03,120.53,120.52,8.3603]
[1743651470091,0.03,120.53,120.52,27.00994886]
[1743651473774,0.03,120.55,120.53,18.64964886]
[1743651473982,0.03,120.55,120.54,6.5037]
[1743651474181,0.03,120.55,120.54,88.4037]
[1743651474384,0.03,120.55,120.54,90.0392]
[1743651474991,0.03,120.55,120.54,98.3352]
[1743651477771,0.03,120.55,120.53,8.2963]
[1743651479183,0.03,120.55,120.53,26.94594886]
[1743651480290,0.03,120.55,120.53,8.2963]
[1743651481587,0.03,120.55,120.52,81.963]
[1743651481780,26.03,120.55,120.52,0.063]
[1743651482279,26.03,120.55,120.52,8.3601]
[1743651482779,26.03,120.55,120.52,0.063]
[1743651487114,0.42648471,120.54,120.52,0.063]
[1743651487286,0.14216157,120.49,120.48,0.063]
[1743651487487,38.15518714,120.49,120.48,0.063]
[1743651487703,46.45458714,120.49,120.48,0.063]
[1743651488007,48.00258714,120.49,120.48,0.063]
[1743651488724,27.548,120.49,120.48,0.063]
[1743651488893,26.0,120.49,120.48,0.063]
[1743651489098,7.3,120.51,120.48,0.063]
[1743651489427,13.56102557,120.52,120.48,0.063]
[1743651489593,21.85862557,120.52,120.48,0.063]
[1743651490209,9.8456,120.52,120.48,0.063]
[1743651490411,21.85862557,120.52,120.48,0.063]
[1743651490710,26.0,120.49,120.48,0.063]
[1743651491006,38.15518714,120.49,120.48,0.063]
[1743651491207,26.0,120.49,120.48,0.063]
[1743651491802,34.2994,120.49,120.48,0.063]
[1743651493387,26.0,120.49,120.48,0.063]
[1743651493591,78.86095914,120.49,120.48,0.063]
[1743651493813,128.52336142,120.49,120.48,0.063]
[1743651494701,135.12289035,120.49,120.48,0.063]
[1743651495221,31.59106157,120.44,120.42,0.063]
[1743651495423,0.28432314,120.4,120.37,0.063]
[1743651495590,12.01302557,120.38,120.37,0.063]
[1743651495791,18.84616627,120.38,120.37,0.063]
[1743651496009,18.98832784,120.38,120.37,0.063]
[1743651496185,19.27265098,120.38,120.37,0.063]
[1743651496390,37.92229984,120.38,120.37,0.063]
[1743651496594,39.49129984,120.38,120.37,0.063]
[1743651497403,47.79829984,120.38,120.37,0.063]
[1743651498233,39.49129984,120.38,120.37,0.063]
[1743651498390,20.84165098,120.38,120.37,0.063]
[1743651498592,19.27265098,120.38,120.37,0.063]
[1743651499016,18.98832784,120.38,120.37,0.063]
[1743651500820,19.27265098,120.38,120.37,0.063]
[1743651502142,46.22929984,120.38,120.37,0.063]
[1743651502339,37.92229984,120.38,120.37,0.063]
[1743651505721,46.22929984,120.38,120.37,0.063]
[1743651506126,370.10929984,120.38,120.37,0.063]
[1743651506520,44.79181043,120.36,120.35,0.063]
[1743651506726,82.76846611,120.36,120.35,0.063]
[1743651507636,91.07686611,120.36,120.35,0.063]
[1743651507835,72.23069984,120.36,120.35,0.063]
[1743651508036,72.08853827,120.36,120.35,0.063]
[1743651508221,72.23069984,120.36,120.35,0.063]
[1743651510246,91.07686611,120.36,120.35,0.063]
[1743651515626,173.17686611,120.36,120.35,0.063]
[1743651515947,203.17686611,120.36,120.35,0.063]
[1743651517736,225.84666637,120.36,120.35,0.063]
[1743651519144,229.50999361,120.36,120.35,0.063]
[1743651519329,234.09477335,120.36,120.35,0.063]
[1743651522142,234.59477335,120.36,120.35,0.063]
[1743651522855,234.09477335,120.36,120.35,0.063]
[1743651523032,234.59477335,120.36,120.35,0.063]
[1743651523459,0.42648471,120.35,120.33,0.063]
[1743651523639,38.18423699,120.34,120.33,0.063]
[1743651523840,46.49393699,120.34,120.33,0.063]
[1743651525557,0.14216157,120.33,120.32,0.063]
[1743651525858,27.10291043,120.32,120.26,8.315]
[1743651526037,39.17533699,120.32,120.26,8.315]
[1743651528154,38.49891127,120.32,120.26,29.1032]
[1743651528368,26.14216157,120.32,120.26,29.1032]
[1743651528661,46.81001127,120.32,120.29,6.5887]
[1743651529741,38.49891127,120.32,120.29,6.5887]
[1743651530440,46.81001127,120.32,120.29,6.5887]
[1743651535361,26.14216157,120.32,120.29,14.9018]
[1743651535659,38.21458813,120.32,120.29,14.9018]
[1743651535872,26.14216157,120.32,120.29,6.5887]
[1743651536051,38.21458813,120.32,120.29,6.5887]
[1743651538262,46.81001127,120.32,120.29,6.5887]
[1743651538459,38.49891127,120.32,120.29,6.5887]
[1743651540165,38.21458813,120.32,120.29,14.9017]
[1743651540346,26.14216157,120.32,120.29,14.9017]
[1743651540547,0.063,120.34,120.29,16.4647]
[1743651540858,12.13542656,120.34,120.29,37.2478]
[1743651541067,0.14216157,120.33,120.29,16.4647]
[1743651542448,0.20516157,120.34,120.29,16.4647]
[1743651543062,0.063,120.34,120.29,16.4647]
[1743651543264,0.063,120.34,120.29,98.3647]
[1743651544364,0.063,120.34,120.29,119.1478]
[1743651546374,0.063,120.34,120.32,7.7249]
[1743651547381,0.063,120.34,120.33,8.3104]
[1743651547884,0.063,120.34,120.33,26.96004886]
[1743651550858,0.063,120.34,120.33,108.86004886]
[1743651551058,0.063,120.34,120.33,90.2104]
[1743651551973,0.063,120.34,120.33,81.9]
[1743651552173,0.063,120.34,120.33,90.2104]
[1743651553261,0.063,120.34,120.33,81.9]
[1743651553969,0.063,120.34,120.32,16.0358]
[1743651554681,0.063,120.34,120.32,7.7249]
[1743651554874,0.063,120.34,120.31,8.3746]
[1743651556185,0.063,120.34,120.31,0.063]
[1743651558417,26.0,120.32,120.31,0.063]
[1743651558769,26.14216157,120.32,120.31,0.063]
[1743651558969,26.0,120.32,120.31,0.063]
[1743651559694,12.07242656,120.33,120.31,0.063]
[1743651559891,7.56516157,120.34,120.31,0.063]
[1743651559892,26.0,120.32,120.31,0.063]
[1743651560269,7.56516157,120.34,120.31,0.063]
[1743651560683,0.063,120.34,120.31,0.063]
[1743651563787,26.063,120.34,120.31,0.063]
[1743651567193,38.13542656,120.34,120.31,0.063]
[1743651567394,0.14216157,120.33,120.31,0.063]
[1743651567907,12.21458813,120.33,120.31,0.063]
[1743651568395,0.14216157,120.33,120.31,0.063]
[1743651570975,26.063,120.34,120.31,0.063]
[1743651573798,0.063,120.34,120.31,0.063]
[1743651576401,0.20516157,120.34,120.31,0.063]
[1743651577514,8.51486157,120.34,120.31,0.063]
[1743651577892,0.20516157,120.34,120.31,0.063]
[1743651578205,20.58738813,120.34,120.31,0.063]
[1743651578804,27.94738813,120.34,120.31,0.063]
[1743651578987,0.14216157,120.32,120.31,0.063]
[1743651579608,19.49542656,120.34,120.31,0.063]
[1743651579905,7.423,120.34,120.31,0.063]
[1743651582589,0.42648471,120.33,120.31,0.063]
[1743651582789,12.49891127,120.33,120.31,0.063]
[1743651583308,0.42648471,120.33,120.31,0.063]
[1743651584487,8.73708471,120.33,120.31,0.063]
[1743651585398,20.80951127,120.33,120.31,0.063]
[1743651585600,12.3567497,120.32,120.31,0.063]
[1743651587814,39.45966013,120.32,120.31,0.063]
[1743651588508,45.72326013,120.32,120.31,0.063]
[1743651593717,39.45966013,120.32,120.31,0.063]
[1743651598203,64.40966013,120.32,120.31,0.063]
[1743651598718,39.45966013,120.32,120.31,0.063]
[1743651598918,0.063,120.33,120.31,0.063]
[1743651599421,26.0,120.32,120.31,0.063]
[1743651601936,34.3111,120.32,120.31,0.063]
[1743651603220,46.81001127,120.32,120.31,0.063]
[1743651603450,65.45966013,120.32,120.31,0.063]
[1743651606409,65.52266013,120.32,120.31,0.063]
[1743651612320,38.56191127,120.32,120.31,0.063]
[1743651613032,46.87301127,120.32,120.31,0.063]
[1743651613834,0.20516157,120.32,120.31,0.063]
[1743651614031,0.063,120.32,120.31,0.063]
[1743651614540,26.063,120.32,120.31,0.063]
[1743651615142,0.063,120.32,120.31,0.063]
[1743651615339,26.063,120.32,120.31,0.063]
[1743651615639,0.063,120.32,120.31,0.063]
[1743651624318,26.063,120.32,120.31,0.063]
[1743651625323,26.48948471,120.32,120.31,0.063]
[1743651625730,34.80058471,120.32,120.31,0.063]
[1743651625926,26.063,120.32,120.31,0.063]
[1743651626540,0.063,120.32,120.31,0.063]
[1743651626732,0.063,120.32,120.31,6.3889]
[1743651627948,0.063,120.32,120.31,14.7007]
[1743651629533,0.063,120.32,120.31,6.3889]
[1743651629843,0.063,120.32,120.31,0.063]
[1743651640572,12.4197497,120.32,120.31,0.063]
[1743651640952,31.21156013,120.32,120.31,0.063]
[1743651641250,39.52266013,120.32,120.31,0.063]
[1743651641668,31.21156013,120.32,120.31,0.063]
[1743651644564,19.13913357,120.32,120.31,0.063]
[1743651644963,31.21156013,120.32,120.31,0.063]
[1743651646264,0.20516157,120.32,120.31,0.063]
[1743651646466,30.92723699,120.32,120.31,0.063]
[1743651646672,32.83856013,120.32,120.31,0.063]
[1743651647670,41.14966013,120.32,120.31,0.063]
[1743651648549,66.09966013,120.32,120.31,0.063]
[1743651650658,148.19966013,120.32,120.31,0.063]
[1743651651485,0.14216157,120.25,120.24,0.03]
[1743651651774,12.49891127,120.25,120.24,0.03]
[1743651652990,31.14856013,120.25,120.24,0.03]
[1743651653168,12.49891127,120.25,120.24,0.03]
[1743651653784,0.42648471,120.25,120.24,0.03]
[1743651653977,0.14216157,120.25,120.24,0.03]
[1743651656587,12.21458813,120.25,120.24,0.03]
[1743651656770,12.49891127,120.25,120.24,0.03]
[1743651658489,31.14856013,120.25,120.24,0.03]
[1743651660375,12.49891127,120.25,120.24,0.03]
[1743651660767,0.42648471,120.25,120.24,0.03]
[1743651660972,0.14216157,120.25,120.24,0.03]
[1743651661271,0.14216157,120.27,120.24,0.03]
[1743651662893,0.42648471,120.27,120.24,0.03]
[1743651663674,12.07242656,120.3,120.24,0.03]
[1743651663893,0.14216157,120.29,120.25,7.9512]
[1743651664198,12.3567497,120.28,120.24,0.03]
[1743651665002,20.6707497,120.28,120.24,0.03]